Cogmind - Beta 16 @@@ ROGUE MODE // 2025.11.22 @ 18:38:50 // Winter2019/RPGLIKE Player: Willow Result: Destroyed by G-50 Soldier with Heavy Laser Performance ------------- Evolutions (4) 2000 Regions Visited (16) 3200 Robots Destroyed (496) 2480 Value Destroyed (17528) 17528 Prototype IDs (69) 1380 Alien Tech Used (1) 200 Bonus (4243) 4243 TOTAL SCORE: 31031 Bonus ------- High Alert Combat Kills 3739 Aligned with FarCom 300 Met Data Miner 300 Friendly Fire -96 Cogmind --------- Core Integrity 0/600 Matter 280/300 Energy 524/550 System Corruption 0% Temperature Cool (-80) Movement Hovering (34) Location -6/Factory Parts ------- > --- POWER (4) -------- Improved Deuterium Engine Improved Deuterium Engine Light Neutrino Core > --- PROPULSION (5) --- Improved Airjet Improved Airjet Cooled Airjet Cooled Airjet Cooled Gravmag System > --- UTILITY (9) ------ Cryofiber Web Advanced Heat Sink Experimental Heat Sink Advanced Sensor Array Advanced Signal Interpreter Advanced Targeting Computer Transmission Jammer Improved Reaction Control System Corruption Screen > --- WEAPON (4) ------- Thermic Laser Thermic Laser Thermic Laser Thermic Laser > --- INVENTORY (4) ---- Protomatter-62 Force Field 01-MTF's Shockpuncher Compact Ion Cannon Peak State ------------ > --- POWER ------------ Improved Deuterium Engine Improved Deuterium Engine F-cell Engine Light Neutrino Core > --- PROPULSION ------- Improved Airjet Improved Airjet Cooled Airjet Cooled Airjet Cooled Gravmag System > --- UTILITY ---------- Cryofiber Web Advanced Heat Sink Experimental Heat Sink Improved Sensor Array Improved Signal Interpreter Advanced Targeting Computer Transmission Jammer Improved Reaction Control System Corruption Screen > --- WEAPON ----------- Thermic Laser Thermic Laser Thermic Laser Thermic Laser > --- INVENTORY -------- Protomatter 01-MTF's Shockpuncher Compact Ion Cannon [Rating: 106] Favorites ----------- Power Improved Deuterium Engine Engine Improved Deuterium Engine Power Core Light Neutrino Core Reactor Cold Fusion Reactor Propulsion Cooled Airjet Leg Aluminum Leg Hover Unit Cooled Airjet Flight Unit Improved Flight Unit Utility Improved Sensor Array Device Improved Sensor Array Processor Improved Signal Interpreter Hackware Hacking Suite Protection Centrium Light Armor Plating Weapon Cooled Pulse Rifle Energy Gun Cooled Pulse Rifle Energy Cannon Compact Ion Cannon Ballistic Gun Improved Assault Rifle Launcher Missile Launcher Special Weapon Molecular Deconstructor Build | -11 -10 -10 -9 -9 -9 -8 -8 -8 -7 -7 -7 -7 -7 -7 -6 -6 ------- Run | Yrd Mat Min Mat Min Exi Min Mat Sto Fac Was Fac Low Low Dat Pro Fac Slots Evolved 17 | 3 . . 4 . . 1 2 . 6 . 1 . . . . . Power 2 | . . . . . . . . . 2 . . . . . . . Propulsion 4 | 1 . . 1 . . 1 . . . . 1 . . . . . Utility 8 | 1 . . 2 . . . 1 . 4 . . . . . . . Weapon 3 | 1 . . 1 . . . 1 . . . . . . . . . Parts Attached 107 | 7 3 . 21 . 1 2 12 10 23 . 17 . . . 5 6 Power 11 | 1 . . 2 . 1 . . . 4 . 2 . . . . 1 Engine 7 | 1 . . 2 . . . . . 2 . 1 . . . . 1 Core 3 | . . . . . . . . . 2 . 1 . . . . . Reactor 1 | . . . . . 1 . . . . . . . . . . . Propulsion 26 | 2 . . 7 . . 1 4 3 4 . 5 . . . . . Treads . | . . . . . . . . . . . . . . . . . Leg 2 | 2 . . . . . . . . . . . . . . . . Wheel . | . . . . . . . . . . . . . . . . . Hover 17 | . . . 3 . . . 4 3 2 . 5 . . . . . Flight 7 | . . . 4 . . 1 . . 2 . . . . . . . Utility 34 | 2 1 . 4 . . 1 3 3 9 . 6 . . . . 5 Device 21 | 2 . . 2 . . 1 2 2 5 . 3 . . . . 4 Storage . | . . . . . . . . . . . . . . . . . Processor 10 | . 1 . 1 . . . 1 . 3 . 3 . . . . 1 Hackware 2 | . . . 1 . . . . . 1 . . . . . . . Protection 1 | . . . . . . . . 1 . . . . . . . . Artifact . | . . . . . . . . . . . . . . . . . Weapon 36 | 2 2 . 8 . . . 5 4 6 . 4 . . . 5 . Energy Gun 20 | 1 . . 3 . . . . 2 6 . 4 . . . 4 . Energy Cannon 1 | . . . . . . . . 1 . . . . . . . . Ballistic Gun 11 | 1 2 . 4 . . . 4 . . . . . . . . . Ballistic Cannon . | . . . . . . . . . . . . . . . . . Launcher 3 | . . . 1 . . . 1 1 . . . . . . . . Special Weapon 1 | . . . . . . . . . . . . . . . 1 . Impact Weapon . | . . . . . . . . . . . . . . . . . Slashing Weapon . | . . . . . . . . . . . . . . . . . Piercing Weapon . | . . . . . . . . . . . . . . . . . Special Melee Weapon . | . . . . . . . . . . . . . . . . . Unidentified Prototypes 23 | . . . 2 . 1 . 1 7 6 . 2 1 . . 1 2 Parts Lost . | . . . . . . . . . . . . . . . . . Power . | . . . . . . . . . . . . . . . . . Propulsion . | . . . . . . . . . . . . . . . . . Utility . | . . . . . . . . . . . . . . . . . Weapon . | . . . . . . . . . . . . . . . . . Highest Loss Streak . | . . . . . . . . . . . . . . . . . To Critical Strikes . | . . . . . . . . . . . . . . . . . Average Backups 2 | . . 1 1 1 1 2 1 2 3 3 2 3 3 3 2 2 Power . | . . . . . . . . . . . . . . . . . Propulsion . | . . . . . . . . . . . . . . . . . Utility . | . . 1 . . . 1 . . 1 . . 1 1 1 1 . Weapon 1 | . . . 1 1 1 1 1 1 2 2 2 2 2 2 1 2 Tool/Special . | . . . . . . . . . . . . . . . . . Unused Backups 9 | . . . 1 . . . 2 . 3 1 . . . . . 2 Power . | . . . . . . . . . . . . . . . . . Propulsion . | . . . . . . . . . . . . . . . . . Utility 8 | . . . 1 . . . 1 . 3 1 . . . . . 2 Weapon 1 | . . . . . . . 1 . . . . . . . . . Tool/Special . | . . . . . . . . . . . . . . . . . Average Slot Usage (%) 97 | . 100 100 95 100 100 99 98 99 99 91 95 97 95 95 92 94 Engine 6 | . 14 14 9 9 8 . . . 4 5 6 9 9 9 9 9 Core 1 | . . . . . . . . . . . 1 4 4 4 4 4 Reactor 2 | . . . . . . 8 7 7 5 5 2 . . . . . Leg 3 | . 28 28 1 . . . . . . . . . . . . . Hover 18 | . . . 19 . . . 23 27 21 20 21 22 22 22 22 22 Flight 2 | . . . 4 27 27 30 8 . . . . . . . . . Device 23 | . 14 14 14 18 18 16 23 21 26 30 29 27 27 27 24 26 Processor 12 | . 13 14 10 9 9 8 8 14 14 11 12 13 13 13 13 13 Hackware 1 | . . . 9 9 9 8 . . 1 . . . . . . . Energy Gun 13 | . 4 . 9 . . . . . 21 20 19 18 18 18 17 18 Ballistic Gun 9 | . 23 28 15 27 27 25 25 27 . . . . . . . . Peak Build Rating 106 | 9 9 7 27 27 31 36 51 63 92 89 95 95 93 93 103 106 Average Rating 63 | 4 7 7 19 27 27 31 43 53 82 85 88 93 93 93 94 101 On Entrance 52 | . 9 7 7 27 27 31 36 51 57 88 85 93 93 93 93 93 Avg Prop Armor Cover (%) 2 | . . . . . . . 2 . . . . . . . . . Naked Turns . | . . . . . . . . . . . . . . . . . Heaviest Build 55 | 7 8 8 19 19 23 23 27 32 45 45 55 51 51 51 51 50 Greatest Support 68 | 20 20 25 25 20 25 29 46 48 47 47 68 55 55 55 55 68 Greatest Overweight (x) 1 | . . . 1 . . . . . 1 . . . . . . . Average Overweight (x) . | . . . . . . . . . . . . . . . . . Largest Inventory Capacity 4 | . 1 2 2 2 3 3 3 3 4 4 4 4 4 4 4 4 Average Capacity 3 | . . 1 2 2 2 3 3 3 3 4 4 4 4 4 4 4 Most Carried 4 | . 1 1 2 2 3 3 3 3 4 4 4 4 4 4 4 4 Average Carried 3 | . . 1 1 2 2 3 2 2 3 3 3 4 4 4 3 3 Final Capacity 4 | . 1 2 2 2 3 3 3 3 4 4 4 4 4 4 4 4 Final Carried 4 | . 1 1 2 2 3 3 2 3 4 4 4 4 4 4 4 4 Class Distribution -------------------- 41% | Hacker-Gunner 28% | Hacker-Sprinter 11% | Gunner 11% | Mutant 3% | Hacker-Mutant Dominant Class ---------------- Mutant | -10/Materials Mutant | -10/Mines Hacker-Gunner | -9/Materials Hacker-Gunner | -9/Mines Hacker-Gunner | -9/Exiles Hacker-Sprinter | -8/Mines Gunner | -8/Materials Gunner | -8/Storage Hacker-Sprinter | -7/Factory Hacker-Sprinter | -7/Waste Hacker-Gunner | -7/Factory Hacker-Gunner | -7/Lower Caves Hacker-Gunner | -7/Lower Caves Hacker-Gunner | -7/Data Miner Hacker-Gunner | -6/Proximity Caves Hacker-Scout | -6/Factory Resources | -11 -10 -10 -9 -9 -9 -8 -8 -8 -7 -7 -7 -7 -7 -7 -6 -6 ----------- Run | Yrd Mat Min Mat Min Exi Min Mat Sto Fac Was Fac Low Low Dat Pro Fac Matter Collected 5196 | 287 181 39 725 90 . 190 1510 1264 464 . 221 40 . . 115 70 Remotely . | . . . . . . . . . . . . . . . . . Salvage Created 17860 | 141 612 100 1158 102 23 245 2486 1294 3742 . 4338 436 1037 . 1353 793 Parts 879 | 9 43 9 102 13 14 22 149 91 163 . 149 15 30 . 37 33 Haulers Intercepted 16 | . 1 . 3 . . . 4 1 2 . 5 . . . . . Recyclers Shooed 4 | . . . . . . . 2 . 1 . 1 . . . . . Parts Field Recycled . | . . . . . . . . . . . . . . . . . Retrieved Matter . | . . . . . . . . . . . . . . . . . Parts Self-Destructed 82 | . . . . . . . . . . . . 15 30 . 37 . Prevented . | . . . . . . . . . . . . . . . . . Parts Restored . | . . . . . . . . . . . . . . . . . Kills | -11 -10 -10 -9 -9 -9 -8 -8 -8 -7 -7 -7 -7 -7 -7 -6 -6 ------- Run | Yrd Mat Min Mat Min Exi Min Mat Sto Fac Was Fac Low Low Dat Pro Fac Combat Hostiles Destroyed 392 | . 14 6 36 6 . 10 38 28 71 . 87 14 25 . 37 20 Guns 363 | . 12 6 36 6 . 10 38 28 68 . 79 13 21 . 32 14 AOE 2 | . 2 . . . . . . . . . . . . . . . Classes Destroyed 20 | 2 6 . 3 . . . 1 3 1 . 1 . . . 3 . Worker 17 | . 1 . . . . . 6 4 2 . 3 . . . . 1 Builder 6 | . . . 1 . . . . 1 4 . . . . . . . Tunneler 5 | 2 . . 1 . . . 1 . . . 1 . . . . . Hauler 16 | . 1 . 3 . . . 4 1 2 . 5 . . . . . Recycler 22 | 1 2 . . . . . 5 3 7 . 4 . . . . . Carrier 1 | . . . . . . . . . . . 1 . . . . . Operator 15 | . 1 . 2 . . . 5 1 2 . 2 . . . . 2 Drone 1 | . . . . . . . . 1 . . . . . . . . Watcher 21 | . 2 . 5 . . . 5 2 3 . 2 . . . . 2 Swarmer 90 | . 6 6 12 . . 7 5 3 7 . 15 7 3 . 12 7 Grunt 192 | . 8 . 15 6 . 3 24 13 41 . 46 4 14 . 13 5 Brawler 15 | . . . . . . . . 2 1 . 8 . 2 . 1 1 Duelist 11 | . . . . . . . . 1 2 . 1 1 4 . 2 . Protector 2 | . . . 1 . . . . . 1 . . . . . . . Sentry 50 | . . . 8 . . . 8 9 8 . 9 2 2 . 2 2 Specialist 3 | . . . . . . . . . . . . . . . 3 . Hunter 17 | . . . . . . . 1 . 7 . 4 . . . 2 3 Programmer 10 | . . . . . . . . . 4 . 4 . . . 1 1 Behemoth 2 | . . . . . . . . . . . . . . . 1 1 Tinkerer 1 | . . . . . . . . . . . . . . . 1 . Best Kill Streak 13 | 3 9 6 6 3 1 4 9 11 7 . 9 8 9 . 13 6 Combat Bots Only 13 | . 5 6 5 3 . 4 6 9 7 . 9 8 9 . 13 6 Max Kills in Single Turn 4 | 1 4 1 2 2 1 2 2 2 2 . 2 2 3 . 3 2 Gunslinging 2 | . . . 1 1 . 1 . . 1 . 1 1 2 . 2 1 Exploded 2 | . 2 . . . . . . . . . . . . . . . Melee . | . . . . . . . . . . . . . . . . . Uniques/NPCs Destroyed 1 | . . . . . 1 . . . . . . . . . . . EX-BIN (-9/Exiles) Combat | -11 -10 -10 -9 -9 -9 -8 -8 -8 -7 -7 -7 -7 -7 -7 -6 -6 -------- Run | Yrd Mat Min Mat Min Exi Min Mat Sto Fac Was Fac Low Low Dat Pro Fac Hostile Shots Fired 1271 | . 73 28 119 11 4 21 81 42 377 . 173 32 44 . 112 154 Missed 592 | . 11 13 44 5 1 8 28 16 189 . 95 20 23 . 51 88 Hits 679 | . 62 15 75 6 3 13 53 26 188 . 78 12 21 . 61 66 Melee 4 | . . . . . . . . . 1 . 1 . 2 . . . Projectile 675 | . 62 15 75 6 3 13 53 26 187 . 77 12 19 . 61 66 Critical Strikes 28 | . 1 . 3 . . . 3 2 6 . 4 . 1 . 6 2 Part Disruptions 2 | . . . . . . . . . . . 1 . . . 1 . Damage Taken 8651 | . 728 112 739 78 45 104 810 460 2010 . 993 137 326 . 898 1211 Core 6913 | . 605 89 578 63 35 84 646 364 1595 . 788 115 268 . 716 967 Absorbed by Shields 36 | . . . . . . . . . 36 . . . . . . . Redirected to Core 5825 | . 405 65 505 46 35 56 549 318 1398 . 679 80 194 . 616 879 Ignored by Resistances 891 | . 28 15 75 6 4 13 56 28 293 . 126 22 38 . 107 80 Regen/Repaired (Parts) 98 | . . . . . . . . . 33 . 65 . . . . . Core Remaining (%) 85 | 100 . 35 . . . 100 . 100 . . . . . . 91 . Volleys Fired 765 | 17 45 8 86 9 2 16 122 70 147 . 104 15 24 . 55 45 Largest 4 | 2 2 2 3 3 3 3 4 4 4 . 4 4 4 . 4 4 Hottest 340 | 60 60 40 189 69 69 69 100 100 240 . 320 320 320 . 340 340 Shots Fired 2585 | 26 90 16 227 27 6 48 376 262 575 . 412 57 96 . 193 174 Gun 2570 | 26 90 16 226 27 6 48 375 256 575 . 411 56 96 . 188 174 Cannon 10 | . . . . . . . . 6 . . 1 1 . . 2 . Launcher 2 | . . . 1 . . . 1 . . . . . . . . . Special 3 | . . . . . . . . . . . . . . . 3 . Kinetic 964 | 17 67 16 152 27 6 48 375 256 . . . . . . . . Thermal 1616 | 9 23 . 74 . . . . 6 575 . 412 57 96 . 190 174 Explosive 2 | . . . 1 . . . 1 . . . . . . . . . Electromagnetic . | . . . . . . . . . . . . . . . . . Robot Hit Streak 69 | 6 14 7 24 11 13 13 35 13 49 . 47 33 69 . 34 45 Robot Miss Streak 7 | 1 4 1 2 2 1 3 4 7 3 . 3 3 2 . 2 1 Penetration Max . | . . . . . . . . . . . . . . . . . Secondary Targets 99 | . 2 2 5 1 . 3 7 7 23 . 16 5 9 . 12 7 Max Gunslinging Chain 2 | . 1 1 1 1 . 1 1 1 1 . 2 1 2 . 2 2 Shots Hit Robots 1880 | 17 62 10 166 17 3 29 254 164 435 . 313 41 79 . 148 142 Core Hits 1003 | 7 30 6 64 8 2 15 118 70 176 . 264 34 73 . 90 46 Critical Kills 2 | . . . . . . . 1 1 . . . . . . . . Critical Parts Destroyed 3 | . . . . . . . 2 1 . . . . . . . . Critical Strikes 71 | . . . 3 . . . 3 2 17 . 6 . . . 22 18 Burn 66 | . . . 3 . . . . . 17 . 6 . . . 22 18 Destroy 5 | . . . . . . . 3 2 . . . . . . . . Melee Attacks . | . . . . . . . . . . . . . . . . . Impact . | . . . . . . . . . . . . . . . . . Slashing . | . . . . . . . . . . . . . . . . . Piercing . | . . . . . . . . . . . . . . . . . Sneak Attacks . | . . . . . . . . . . . . . . . . . Combat Hostiles . | . . . . . . . . . . . . . . . . . Follow-up Attacks . | . . . . . . . . . . . . . . . . . Damage Inflicted 40294 | 171 1110 118 2700 255 50 442 4171 3096 9167 . 9172 1189 2624 . 3284 2745 Guns 39859 | 171 753 118 2700 255 50 442 4160 3096 9167 . 9105 1189 2624 . 3284 2745 Cannons . | . . . . . . . . . . . . . . . . . Explosions 348 | . 348 . . . . . . . . . . . . . . . Melee . | . . . . . . . . . . . . . . . . . Ramming 87 | . 9 . . . . . 11 . . . 67 . . . . . Kinetic 10461 | 95 590 118 1655 255 50 442 4160 3096 . . . . . . . . Thermal 29746 | 76 511 . 1045 . . . . . 9167 . 9105 1189 2624 . 3284 2745 Explosive . | . . . . . . . . . . . . . . . . . Electromagnetic . | . . . . . . . . . . . . . . . . . Impact . | . . . . . . . . . . . . . . . . . Slashing . | . . . . . . . . . . . . . . . . . Piercing . | . . . . . . . . . . . . . . . . . Highest Corruption 2 | . . . 1 1 1 1 . . 1 2 2 . . . . . Average Corruption 1 | . . . 1 1 1 1 . . 1 2 1 . . . . . Corruption Purged 4 | . . . . . . . . . 1 . 3 . . . . . Corruption Blocked 18 | . . . . . . . . . 4 8 4 . . . . 2 Effects 27 | . . . 7 4 . 2 . . 3 . 11 . . . . . Message Errors 8 | . . . . 3 . 1 . . . . 4 . . . . . Matter Fused 7 | . . . 1 . . 1 . . 3 . 2 . . . . . Heat Flow Errors 2 | . . . . 1 . . . . . . 1 . . . . . Energy Discharges 1 | . . . 1 . . . . . . . . . . . . . Parts Rejected 1 | . . . 1 . . . . . . . . . . . . . Parts Fused 1 | . . . 1 . . . . . . . . . . . . . Data Loss (minor) 4 | . . . 1 . . . . . . . 3 . . . . . Data Loss (major) 1 | . . . 1 . . . . . . . . . . . . . Misfires 1 | . . . 1 . . . . . . . . . . . . . Alerts 1 | . . . . . . . . . . . 1 . . . . . Overload Shots 4 | . . . . . . . . . 4 . . . . . . . Effects 1 | . . . . . . . . . 1 . . . . . . . Short Circuit 1 | . . . . . . . . . 1 . . . . . . . Overflow Damage 158 | . 121 . . . . . . . . . 37 . . . . . Projectiles . | . . . . . . . . . . . . . . . . . Explosions 121 | . 121 . . . . . . . . . . . . . . . Melee 37 | . . . . . . . . . . . 37 . . . . . Knockbacks 1 | . . . . . . . . . . . 1 . . . . . Impact 1 | . . . . . . . . . . . 1 . . . . . Kinetic . | . . . . . . . . . . . . . . . . . Secondary . | . . . . . . . . . . . . . . . . . Self-Inflicted Damage 234 | . 91 . . . . . 5 105 . . 33 . . . . . Shots 3 | . 1 . . . . . . 2 . . . . . . . . Rammed 2 | . . . . . . . 1 . . . 1 . . . . . Targets Rammed 3 | . 1 . . . . . 1 . . . 1 . . . . . Kicked 1 | . 1 . . . . . . . . . . . . . . . Crushed . | . . . . . . . . . . . . . . . . . Highest Temperature 361 | 40 192 . 361 84 . . 72 216 . . 102 . . . 301 87 Average Temperature 59 | 22 60 . 47 53 . . 37 63 . . 54 . . . 88 46 Received Heat Transfer 2906 | . 258 . 240 45 . 9 333 144 926 . 303 27 171 . 297 153 Effects 3 | . . . 1 . . . . . . . . . . . 2 . Energy Bleed 1 | . . . 1 . . . . . . . . . . . . . Interference 2 | . . . . . . . . . . . . . . . 2 . Siege Activations . | . . . . . . . . . . . . . . . . . Martial Activations . | . . . . . . . . . . . . . . . . . Shielding Activations . | . . . . . . . . . . . . . . . . . Robots Disrupted . | . . . . . . . . . . . . . . . . . Combat Hostiles . | . . . . . . . . . . . . . . . . . Robots Corrupted 1 | . . . . . . . . . . . 1 . . . . . Combat Hostiles . | . . . . . . . . . . . . . . . . . Parts Fried . | . . . . . . . . . . . . . . . . . Impact Corruptions 2 | . . . . . . . . . . . 2 . . . . . Robots Melted 28 | . . . . . . . . . 3 . 9 1 4 . 5 6 Combat Hostiles 27 | . . . . . . . . . 3 . 8 1 4 . 5 6 Parts Melted 209 | . 2 . 7 . . . . . 42 . 57 6 17 . 38 40 Heat Transferred 63850 | 175 575 . 2405 . . . . . 16767 . 18075 2400 5300 . 10200 7953 Parts Sabotaged . | . . . . . . . . . . . . . . . . . Parts Stolen . | . . . . . . . . . . . . . . . . . Parts Stripped . | . . . . . . . . . . . . . . . . . Power Chain Reactions . | . . . . . . . . . . . . . . . . . Alert | -11 -10 -10 -9 -9 -9 -8 -8 -8 -7 -7 -7 -7 -7 -7 -6 -6 ------- Run | Yrd Mat Min Mat Min Exi Min Mat Sto Fac Was Fac Low Low Dat Pro Fac Maximum Alert Level 5 | . 1 . 2 1 . . 2 3 5 2 5 . . . . 2 Low Security (%) 22 | 100 45 100 56 87 . 100 17 3 3 . . . . . . . Level 1 30 | . 54 . 43 12 . . 66 19 31 . 1 . . . . 66 Level 2 14 | . . . . . . . 15 33 10 100 29 . . . . 33 Level 3 20 | . . . . . . . . 43 31 . 42 . . . . . Level 4 8 | . . . . . . . . . 22 . 13 . . . . . Level 5 2 | . . . . . . . . . . . 13 . . . . . High Security . | . . . . . . . . . . . . . . . . . Max Security . | . . . . . . . . . . . . . . . . . Peak Influence 1744 | 10 278 120 421 209 . 170 464 819 1613 564 1744 . . . . 548 Initial 564 | . . 75 31 133 . . 62 195 350 564 380 . . . . 308 Average 536 | 2 179 51 186 173 . 104 299 578 774 554 938 . . . . 353 Influence Increases 11703 | 15 552 140 1105 156 . 260 1244 1032 2261 . 2565 300 540 . 865 668 Destroy 0b10 Robot/C 7820 | . 280 120 700 120 . 200 760 560 1400 . 1760 280 500 . 740 400 Destroy 0b10 Robot/NC 525 | 15 35 . 65 . . . 130 60 105 . 85 . . . 5 25 Destroy Leader 1604 | . 66 20 196 20 . 30 208 166 330 . 344 20 40 . 60 104 Allied During Kill 18 | . . . . 16 . . . 2 . . . . . . . . Successful Hack 262 | . 23 . 7 . . . 6 16 90 . 87 . . . . 33 Select Force Hacks 750 | . 60 . 60 . . . 90 60 180 . 210 . . . . 90 Disable Machine 225 | . 15 . 15 . . 30 15 135 15 . . . . . . . Destroy Structure 94 | . 28 . 17 . . . 20 18 6 . 4 . . . . 1 Partial Spotted 90 | . . . . . . . . . 45 . 30 . . . . 15 Lose Combat Pursuer 315 | . 45 . 45 . . . 15 15 90 . 45 . . . 60 . Influence Decreases 11423 | 15 357 255 843 349 149 100 940 725 1420 1068 1374 793 435 1347 374 879 Entered New Map 4937 | . . 120 49 209 149 . 98 269 421 1048 164 643 237 1347 . 183 Time Decay 4256 | 15 357 135 494 140 . 100 392 326 699 20 610 150 198 . 374 246 Lost Ally 130 | . . . . . . . . 130 . . . . . . . . Purge Threat 2100 | . . . 300 . . . 450 . 300 . 600 . . . . 450 Squads Dispatched 72 | . 3 . 4 . . . 8 5 26 . 20 . . . . 6 Investigation 43 | . 3 . 2 . . . 5 4 13 . 12 . . . . 4 Extermination 10 | . . . . . . . . . 5 . 4 . . . . 1 Reinforcement 8 | . . . 1 . . . 2 . 3 . 1 . . . . 1 Assault 7 | . . . 1 . . . . . 4 . 2 . . . . . Garrison 4 | . . . . . . . 1 1 1 . 1 . . . . . Intercept . | . . . . . . . . . . . . . . . . . Searches Triggered . | . . . . . . . . . . . . . . . . . Unchained Authorized 1 | . . . . . . . . . . . . . . . . 1 Construction Impeded . | . . . . . . . . . . . . . . . . . Haulers Reinforced 2 | . . . . . . . . . 2 . . . . . . . Active Scanning Responses . | . . . . . . . . . . . . . . . . . Cargo Convoy Interrupts . | . . . . . . . . . . . . . . . . . Stealth | -11 -10 -10 -9 -9 -9 -8 -8 -8 -7 -7 -7 -7 -7 -7 -6 -6 --------- Run | Yrd Mat Min Mat Min Exi Min Mat Sto Fac Was Fac Low Low Dat Pro Fac Distress Signals 10 | . 1 . 1 . . . 2 3 1 . 2 . . . . . Communications Jammed 30 | . . . . . . . . . 24 . 4 . 1 . . 1 Distress Signals 29 | . . . . . . . . . 24 . 3 . 1 . . 1 Times Spotted 459 | . 25 9 44 6 1 9 49 34 94 6 85 10 18 . 37 32 Peak Tracking Total 9 | . 6 3 5 3 9 4 6 6 7 6 4 3 4 . 6 7 Tactical Retreats 19 | . 2 . 3 . . . 1 1 7 . 3 . . . 2 . ECM-based Alert Blocks 6 | . . . . . . . . . 6 . . . . . . . Traps | -11 -10 -10 -9 -9 -9 -8 -8 -8 -7 -7 -7 -7 -7 -7 -6 -6 ------- Run | Yrd Mat Min Mat Min Exi Min Mat Sto Fac Was Fac Low Low Dat Pro Fac Traps Triggered 25 | . 1 . 1 . . . 1 2 7 . 11 . . . . 2 Indirectly . | . . . . . . . . . . . . . . . . . Trap Hack Attempts . | . . . . . . . . . . . . . . . . . Triggered . | . . . . . . . . . . . . . . . . . Disarmed . | . . . . . . . . . . . . . . . . . Reprogrammed . | . . . . . . . . . . . . . . . . . Reused . | . . . . . . . . . . . . . . . . . Traps Extracted . | . . . . . . . . . . . . . . . . . Installed . | . . . . . . . . . . . . . . . . . Triggered . | . . . . . . . . . . . . . . . . . Machines | -11 -10 -10 -9 -9 -9 -8 -8 -8 -7 -7 -7 -7 -7 -7 -6 -6 ---------- Run | Yrd Mat Min Mat Min Exi Min Mat Sto Fac Was Fac Low Low Dat Pro Fac Machines Disabled 17 | . 1 . 1 . . 2 1 9 1 . . . . . 2 . Max in Single Turn 2 | . 1 . 1 . . 1 1 2 1 . . . . . 1 . Garrison Access 8 | . . . . . . . 1 1 3 . 3 . . . . . Machines Repaired . | . . . . . . . . . . . . . . . . . Machines Dismantled . | . . . . . . . . . . . . . . . . . Machines Sabotaged . | . . . . . . . . . . . . . . . . . Overloaded Fab Kills . | . . . . . . . . . . . . . . . . . Hacking | -11 -10 -10 -9 -9 -9 -8 -8 -8 -7 -7 -7 -7 -7 -7 -6 -6 --------- Run | Yrd Mat Min Mat Min Exi Min Mat Sto Fac Was Fac Low Low Dat Pro Fac Machines Accessed 122 | . 9 . 11 . 1 . 12 8 33 . 30 . 1 3 1 13 Terminals 65 | . 7 . 9 . . . 7 5 15 . 14 . . . 1 7 Fabricators 11 | . . . . . . . . . 5 . 4 . . . . 2 Repair Stations 2 | . . . . . . . . . 1 . 1 . . . . . Recycling Units 23 | . 2 . 2 . . . 2 2 6 . 6 . . . . 3 Scanalyzers 8 | . . . . . . . 2 . 3 . 2 . . . . 1 Garrison Access 8 | . . . . . . . 1 1 3 . 3 . . . . . Total Hacks 352 | . 28 . 31 . 1 . 33 14 89 . 85 . 1 24 4 42 Successful 225 | . 19 . 21 . 1 . 21 7 46 . 52 . 1 24 4 29 Failed 125 | . 8 . 9 . . . 12 7 43 . 33 . . . . 13 Catastrophic 25 | . 2 . 2 . . . 3 4 7 . 6 . . . . 1 Database Lockouts 2 | . 1 . 1 . . . . . . . . . . . . . Manual 173 | . 21 . 21 . 1 . 15 8 48 . 41 . . . 1 17 Terminals 219 | . 26 . 27 . . . 25 9 47 . 57 . . . 4 24 Fabricators 25 | . . . . . . . . . 11 . 8 . . . . 6 Repair Stations 9 | . . . . . . . . . 6 . 3 . . . . . Recycling Units 36 | . 2 . 4 . . . 2 4 11 . 9 . . . . 4 Scanalyzers 25 | . . . . . . . 4 . 10 . 3 . . . . 8 Garrison Access 12 | . . . . . . . 2 1 4 . 5 . . . . . Terminal Hacks 99 | . 7 . 11 . 1 . 8 2 11 . 20 . 1 24 4 10 Record 5 | . . . . . . . . . . . . . . 1 4 . Part Schematic 14 | . . . . . . . . . 1 . . . . 12 . 1 Robot Schematic 9 | . . . . . . . . . . . 1 . . 8 . . Robot Analysis 9 | . 2 . 2 . . . 1 . 1 . 3 . . . . . Prototype ID Bank 12 | . . . 2 . . . . 1 3 . 2 . . 3 . 1 Open Door 2 | . . . . . . . . 1 . . . . 1 . . . Terminal Index 5 | . 1 . 1 . . . 1 . . . 1 . . . . 1 Recycling Unit Index 1 | . . . . . . . . . . . 1 . . . . . Scanalyzer Index 1 | . . . . . . . . . . . 1 . . . . . Alert Level 20 | . 2 . 3 . . . 3 . 3 . 5 . . . . 4 Unreport Threat 14 | . . . 2 . . . 3 . 2 . 4 . . . . 3 Locate Traps 1 | . 1 . . . . . . . . . . . . . . . Dispatch Records 1 | . 1 . . . . . . . . . . . . . . . Recall Investigation 2 | . . . 1 . . . . . . . 1 . . . . . Hauler Manifests 2 | . . . . . . . . . 1 . 1 . . . . . Proto ID Catalog 1 | . . . . . 1 . . . . . . . . . . . Fabricator Hacks 16 | . . . . . . . . . 6 . 7 . . . . 3 Network Status 5 | . . . . . . . . . 3 . 1 . . . . 1 Load Schematic 6 | . . . . . . . . . 2 . 3 . . . . 1 Build 5 | . . . . . . . . . 1 . 3 . . . . 1 Repair Station Hacks 4 | . . . . . . . . . 2 . 2 . . . . . Scan Component 2 | . . . . . . . . . 1 . 1 . . . . . Repair 2 | . . . . . . . . . 1 . 1 . . . . . Recycling Unit Hacks . | . . . . . . . . . . . . . . . . . Scanalyzer 15 | . . . . . . . 1 . 5 . 2 . . . . 7 Insert Component 7 | . . . . . . . 1 . 2 . 1 . . . . 3 Analyze 5 | . . . . . . . . . 2 . . . . . . 3 Retrieve Study 3 | . . . . . . . . . 1 . 1 . . . . 1 Garrison Access Hacks 8 | . . . . . . . 1 1 3 . 3 . . . . . Seal Access 8 | . . . . . . . 1 1 3 . 3 . . . . . Unauthorized Hacks 83 | . 12 . 10 . . . 11 4 19 . 18 . . . . 9 Terminals 55 | . 10 . 8 . . . 8 2 10 . 11 . . . . 6 Botnet 18 | . 4 . 3 . . . 3 . 3 . 3 . . . . 2 Skim 36 | . 6 . 5 . . . 5 2 6 . 8 . . . . 4 Sabotage 1 | . . . . . . . . . 1 . . . . . . . Fabricators 3 | . . . . . . . . . 3 . . . . . . . Haulers 1 | . . . . . . . . . 1 . . . . . . . Recompile 2 | . . . . . . . . . 2 . . . . . . . Repair Stations . | . . . . . . . . . . . . . . . . . Recycling Units 22 | . 2 . 2 . . . 2 2 5 . 6 . . . . 3 Tunnel 22 | . 2 . 2 . . . 2 2 5 . 6 . . . . 3 Scanalyzers 3 | . . . . . . . 1 . 1 . 1 . . . . . Extract 3 | . . . . . . . 1 . 1 . 1 . . . . . Garrison Access . | . . . . . . . . . . . . . . . . . Data Cores Recovered 10 | . 1 . 1 . . . 3 1 1 . 1 . . . . 2 Used 3 | . . . 1 . . . 1 . . . 1 . . . . . Hacking Detections 74 | . 5 . 7 . . . 7 4 23 . 20 . . . . 8 Full Trace Events 16 | . 1 . 1 . . . 2 2 4 . 5 . . . . 1 Feedback Events 2 | . . . . . . . . . 1 . 1 . . . . . Corruption 2 | . . . . . . . . . 1 . 1 . . . . . Feedback Blocked . | . . . . . . . . . . . . . . . . . Robot Schematics Acquired 9 | . . . . . . . . . . . 1 . . 8 . . Robots Built . | . . . . . . . . . . . . . . . . . Authchips . | . . . . . . . . . . . . . . . . . Time . | . . . . . . . . . . . . . . . . . Total Robot Build Rating . | . . . . . . . . . . . . . . . . . Part Schematics Acquired 31 | . . . . . . . 2 . 12 . 1 . . 12 . 4 Parts Built 10 | . . . . . . . . . 2 . 6 . . . . 2 Authchips . | . . . . . . . . . . . . . . . . . Time 310 | . . . . . . . . . 53 . 210 . . . . 47 Total Part Build Rating 46 | . . . . . . . . . 12 . 24 . . . . 10 Part Studies Acquired 3 | . . . . . . . . . 1 . 1 . . . . 1 Parts Repaired 2 | . . . . . . . . . 1 . 1 . . . . . Time 156 | . . . . . . . . . 44 . 112 . . . . . Parts Recycled . | . . . . . . . . . . . . . . . . . Recycled Matter . | . . . . . . . . . . . . . . . . . Retrieved Matter . | . . . . . . . . . . . . . . . . . Retrieved Components . | . . . . . . . . . . . . . . . . . Parts Scanalyzed 5 | . . . . . . . . . 2 . . . . . . 3 Part Schematics Acquired 5 | . . . . . . . . . 2 . . . . . . 3 Parts Damaged . | . . . . . . . . . . . . . . . . . Bothacking | -11 -10 -10 -9 -9 -9 -8 -8 -8 -7 -7 -7 -7 -7 -7 -6 -6 ------------ Run | Yrd Mat Min Mat Min Exi Min Mat Sto Fac Was Fac Low Low Dat Pro Fac Used RIF Installer . | . . . . . . . . . . . . . . . . . Robots Hacked . | . . . . . . . . . . . . . . . . . Non-combat . | . . . . . . . . . . . . . . . . . Combat . | . . . . . . . . . . . . . . . . . Robot Hacks Applied . | . . . . . . . . . . . . . . . . . Relay Couplers Released . | . . . . . . . . . . . . . . . . . Fabnet Peak Effective % . | . . . . . . . . . . . . . . . . . Robots Rewired . | . . . . . . . . . . . . . . . . . Allies Hacked . | . . . . . . . . . . . . . . . . . Hacks Repelled . | . . . . . . . . . . . . . . . . . Allies | -11 -10 -10 -9 -9 -9 -8 -8 -8 -7 -7 -7 -7 -7 -7 -6 -6 -------- Run | Yrd Mat Min Mat Min Exi Min Mat Sto Fac Was Fac Low Low Dat Pro Fac Total Allies 2 | . . . . 2 . . . . . . . . . . . . Largest Group 2 | . . . . 2 2 . . . . . . . . . . . Highest-Rated Group 47 | . . . . 47 47 . . . . . . . . . . . Highest-Rated Ally 31 | . . . . 31 31 . . . . . . . . . . . Total Orders 4 | . . . . . . . . 4 . . . . . . . . EXPLORE 4 | . . . . . . . . 4 . . . . . . . . Ally Attacks 7 | . . . . 7 . . . . . . . . . . . . Total Damage 75 | . . . . 75 . . . . . . . . . . . . Kills . | . . . . . . . . . . . . . . . . . Allies Corrupted . | . . . . . . . . . . . . . . . . . Allies Melted . | . . . . . . . . . . . . . . . . . Intel | -11 -10 -10 -9 -9 -9 -8 -8 -8 -7 -7 -7 -7 -7 -7 -6 -6 ------- Run | Yrd Mat Min Mat Min Exi Min Mat Sto Fac Was Fac Low Low Dat Pro Fac Active Infowar (turns) 12149 | 32 924 332 1287 294 139 229 937 733 2940 56 1991 316 405 28 975 531 Optics 118 | . . . 118 . . . . . . . . . . . . . Sensors 9708 | . . . 161 294 139 229 937 733 2913 56 1991 316 405 28 975 531 Terrain 45 | 19 26 . . . . . . . . . . . . . . . Seismic 3222 | 32 924 332 1287 294 139 214 . . . . . . . . . . Jamming 4753 | . . . . . . . . . 508 . 1990 316 405 28 975 531 ECM 54 | . . . . . . . . . 53 . 1 . . . . . Robot Analysis Total 9 | . 2 . 2 . . . 1 . 1 . 3 . . . . . Derelict Logs Recovered 8 | . . 1 . 1 . . . . . . . 2 2 . 2 . Drone Launches 31 | . . . . . . . . 31 . . . . . . . . Drone Recoveries 16 | . . . . . . . . 16 . . . . . . . . Exploration | -11 -10 -10 -9 -9 -9 -8 -8 -8 -7 -7 -7 -7 -7 -7 -6 -6 ------------- Run | Yrd Mat Min Mat Min Exi Min Mat Sto Fac Was Fac Low Low Dat Pro Fac Turns Passed 12280 | 108 924 332 1317 294 139 229 937 733 2965 56 1991 316 405 28 975 531 Spaces Moved 15918 | 59 622 234 1261 565 240 479 1143 906 3791 144 3042 693 833 82 1080 744 Core 17 | 17 . . . . . . . . . . . . . . . . Treads . | . . . . . . . . . . . . . . . . . Legs 933 | 42 622 234 35 . . . . . . . . . . . . . Wheels . | . . . . . . . . . . . . . . . . . Hover 13133 | . . . 942 . . . 876 906 3791 144 3042 693 833 82 1080 744 Flight 1835 | . . . 284 565 240 479 267 . . . . . . . . . Fastest Speed 22 | 50 120 120 34 34 34 31 31 40 33 33 22 34 34 34 34 22 Average Speed 41 | 99 120 120 52 34 34 32 44 46 33 33 34 34 34 34 34 33 Slowest Speed 120 | 120 120 120 120 34 34 34 56 56 105 33 38 34 34 34 34 34 Overloaded Moves 143 | . . . . . . . . . . . 108 . . . . 35 Propulsion Burnouts . | . . . . . . . . . . . . . . . . . Robots Hopped 29 | . . . 12 4 . 11 2 . . . . . . . . . Potential Cave-ins . | . . . . . . . . . . . . . . . . . Cave-ins Triggered . | . . . . . . . . . . . . . . . . . Exploration Rate (%) 75 | 3 88 51 95 96 62 93 85 93 77 92 77 90 91 70 95 28 Regions Visited 16 Branch Regions 9 Pre-discovered Areas 34 | . 3 1 4 . . . 2 2 9 . 8 . . 1 1 3 Known Exits Taken 9 | . . 1 . . . 1 1 1 . . 1 1 1 1 1 . Unknown Exits Taken 5 | 1 1 . 1 1 1 . . . . . . . . . . . Scrap Searched 19 | . . . . 1 . 2 . . . . . 2 10 . 4 . Spaces Dug 2 | . . . . . . . . . . . 1 1 . . . . Terrain Destroyed 75 | . 28 . 16 . . . 12 15 2 . 1 1 . . . . Melee . | . . . . . . . . . . . . . . . . . Projectile 4 | . . . . . . . . . 2 . 1 1 . . . . AOE 71 | . 28 . 16 . . . 12 15 . . . . . . . . Terrain Rammed . | . . . . . . . . . . . . . . . . . Walls Destroyed . | . . . . . . . . . . . . . . . . . Machines Disabled . | . . . . . . . . . . . . . . . . . Actions | -11 -10 -10 -9 -9 -9 -8 -8 -8 -7 -7 -7 -7 -7 -7 -6 -6 --------- Run | Yrd Mat Min Mat Min Exi Min Mat Sto Fac Was Fac Low Low Dat Pro Fac Total 19839 | 82 714 269 1725 643 292 506 1387 1153 5113 152 3656 725 874 81 1548 919 Wait 2410 | . 26 28 283 66 48 11 47 84 986 7 390 . . . 353 81 Move 15850 | 58 621 233 1238 556 239 459 1138 905 3791 143 3041 692 832 81 1079 744 Hop 24 | . . . 10 4 . 8 2 . . . . . . . . . Pick Up 37 | . 1 . 11 1 1 . 4 4 7 1 3 1 . . . 3 Fast Attach 112 | 7 2 . 12 . 1 2 10 15 33 . 16 2 . . 7 5 Attach 11 | . . . 4 . . . . 1 3 . 1 . . . . 2 Detach 8 | . . . 2 . . . . 2 1 . 1 . . . 1 1 Swap 42 | . 1 . 9 . . . 5 10 6 . 4 2 . . 3 2 Drop 118 | . 3 . 19 1 1 1 14 16 28 1 16 2 . . 8 8 Fire 765 | 17 45 8 86 9 2 16 122 70 147 . 104 15 24 . 55 45 Melee . | . . . . . . . . . . . . . . . . . Ram 2 | . . . . . . . 1 . . . 1 . . . . . Kick 1 | . 1 . . . . . . . . . . . . . . . Crush . | . . . . . . . . . . . . . . . . . Escape Stasis 24 | . . . . . . . . . 8 . 16 . . . . . Rewire . | . . . . . . . . . . . . . . . . . Trap . | . . . . . . . . . . . . . . . . . Miscellaneous 435 | . 14 . 51 6 . 9 44 46 103 . 63 11 18 . 42 28 Route ------- -11/Scrapyard -10/Materials (discovered 5 exits: *Mat x3 / [*Min] / *Sub) -10/Mines -9/Materials (discovered 5 exits: *Mat x3 / [*Min x2]) -9/Mines (discovered 3 exits: *Mat x2 / *Exi) -9/Exiles (discovered 2 exits: [*Min x2]) -8/Mines (discovered 2 exits: *Mat x2) -8/Materials (discovered 5 exits: *Fac x3 / *Sto x2) -8/Storage (discovered 2 exits: *Fac / *Rec) -7/Factory (discovered 6 exits: *Fac x4 / *Low x2) -7/Waste -7/Factory (discovered 5 exits: *Fac x3 / *Low x2) -7/Lower Caves -7/Lower Caves (discovered 2 exits: *Fac / *Dat) -7/Data Miner -6/Proximity Caves -6/Factory (discovered 2 exits: Fac / Low) History --------- Turn | Location | Event 7 | -11/Scrapyard | Discovered new exit (range 14) 23 | -11/Scrapyard | Upgraded with Propulsion slot (x1) 23 | -11/Scrapyard | Upgraded with Utility slot (x1) 23 | -11/Scrapyard | Upgraded with Weapon slot (x1) 109 | -11/Scrapyard | Entered Materials 174 | -10/Materials | Central database locked down 187 | -10/Materials | Discovered new exit (range 16) 234 | -10/Materials | Core integrity fell below 50% 308 | -10/Materials | Build established: Mutant 315 | -10/Materials | Discovered new exit (range 16) 561 | -10/Materials | Reached level 2 685 | -10/Materials | Identified exit to Subcaves 703 | -10/Materials | Discovered new exit (range 13) 715 | -10/Materials | Learned location of Subcaves (-10) 733 | -10/Materials | Learned location of 2 exits from Subcaves 743 | -10/Materials | Learned 4 Subcaves zone layouts 744 | -10/Materials | Learned Storage emergency access door positions 745 | -10/Materials | Learned Recycling recycling unit intel 746 | -10/Materials | Identified exit to Materials 754 | -10/Materials | Learned 4 Recycling zone layouts 1009 | -10/Materials | Derelicts attacked the area 1033 | -10/Materials | Entered Mines 1102 | -10/Mines | Assembled infested the area 1268 | -10/Mines | Reached level 3 1306 | -10/Mines | Discovered exit to Materials (range 7) 1365 | -10/Mines | Entered Materials 1366 | -9/Materials | Core integrity fell below 50% 1367 | -9/Materials | Reached level 4 1403 | -9/Materials | Upgraded with Utility slot (x2) 1404 | -9/Materials | Central database locked down 1636 | -9/Materials | Discovered new exit (range 17) 1666 | -9/Materials | Reached level 5 1701 | -9/Materials | Discovered new exit (range 11) 1712 | -9/Materials | Build established: Hacker-Mutant 1778 | -9/Materials | Upgraded with Weapon slot (x1) 1811 | -9/Materials | Discovered new exit (range 17) 1835 | -9/Materials | Upgraded with Propulsion slot (x1) 2071 | -9/Materials | Build established: Hacker-Gunner 2275 | -9/Materials | Discovered new exit (range 17) 2295 | -9/Materials | Learned location of Zion (-6) 2311 | -9/Materials | Reached level 6 2349 | -9/Materials | Identified exit to Materials 2453 | -9/Materials | Learned 4 Recycling zone layouts 2492 | -9/Materials | Learned location of 1 exit from Storage 2562 | -9/Materials | Reached level 7 2565 | -9/Materials | First assault squad dispatched 2682 | -9/Materials | Entered Mines 2730 | -9/Mines | Discovered exit to Materials (range 6) 2737 | -9/Mines | Received a Rocket Launcher from a helpful Derelict 2742 | -9/Mines | Learned 2 Materials zone layouts 2783 | -9/Mines | Deemed a non-threat by the Exiles lab entrance 2835 | -9/Mines | Reached level 8 2859 | -9/Mines | Discovered exit to Materials (range 15) 2922 | -9/Mines | Discovered new exit (range 5) 2976 | -9/Mines | Entered Exiles 2976 | -9/Exiles | Accompanied by 2 allies 2981 | -9/Exiles | Discovered new exit (range 16) 2985 | -9/Exiles | Met 8R-AWN 2990 | -9/Exiles | Met EX-HEX 3000 | -9/Exiles | Met EX-BIN 3004 | -9/Exiles | Aligned with FarCom system 3004 | -9/Exiles | Given EX-Vault access code 3006 | -9/Exiles | Led the pair of lost Derelicts to a safe place 3012 | -9/Exiles | Opened EX-Vault 3021 | -9/Exiles | Warned to stay clear of 0b10 Research branches 3027 | -9/Exiles | Exiles lab attacked by MAIN.C 3042 | -9/Exiles | Discovered new exit (range 10) 3097 | -9/Exiles | Attacked by the Exiles 3099 | -9/Exiles | Destroyed EX-BIN 3115 | -9/Exiles | Entered Mines 3161 | -8/Mines | Discovered exit to Materials (range 11) 3193 | -8/Mines | Discovered exit to Materials (range 7) 3205 | -8/Mines | Reached level 9 3217 | -8/Mines | Upgraded with Propulsion slot (x1) 3344 | -8/Mines | Entered Materials 3345 | -8/Materials | Identified exit to Storage 3346 | -8/Materials | Reached level 10 3434 | -8/Materials | Reached level 11 3484 | -8/Materials | Discovered exit to Storage (range 17) 3498 | -8/Materials | Discovered new exit (range 3) 3723 | -8/Materials | Discovered new exit (range 14) 3849 | -8/Materials | Reached level 12 3903 | -8/Materials | Build established: Gunner 3922 | -8/Materials | Garrison activated, responded to threat 4086 | -8/Materials | Upgraded with Utility slot (x1) 4086 | -8/Materials | Upgraded with Weapon slot (x1) 4179 | -8/Materials | Discovered new exit (range 6) 4281 | -8/Materials | Entered Storage 4282 | -8/Storage | Identified exit to Factory 4283 | -8/Storage | Reached level 13 4320 | -8/Storage | Garrison activated, responded to threat 4388 | -8/Storage | Destroyed 9 combat bots 4406 | -8/Storage | Lost 8 allies 4429 | -8/Storage | Met 01-MTF 4634 | -8/Storage | Discovered new exit (range 6) 4637 | -8/Storage | Identified exit to Recycling 4750 | -8/Storage | Found Prototype Energy Gun 4750 | -8/Storage | Identified 01-MTF's Shockpuncher 4785 | -8/Storage | Reached level 14 5014 | -8/Storage | Entered Factory 5014 | -7/Factory | Accompanied by 1 ally (01-MTF) 5017 | -7/Factory | 01-MTF left 5034 | -7/Factory | Upgraded with Power slot (x1) 5080 | -7/Factory | Discovered new exit (range 7) 5084 | -7/Factory | Upgraded with Utility slot (x2) 5137 | -7/Factory | Reached level 15 5227 | -7/Factory | Fabricated Linear Gravjet (x2) 5275 | -7/Factory | Core integrity fell below 50% 5445 | -7/Factory | Discovered new exit (range 12) 5448 | -7/Factory | Identified exit to Factory 5528 | -7/Factory | Build established: Hacker-Sprinter 5636 | -7/Factory | Discovered new exit (range 6) 5638 | -7/Factory | Identified exit to Lower Caves 5667 | -7/Factory | Learned location of 1 exit from Proximity Caves 5725 | -7/Factory | Upgraded with Utility slot (x1) 5797 | -7/Factory | Learned location of 1 exit from Proximity Caves 5803 | -7/Factory | Repaired Broken Cld. Pulse Rifle 5850 | -7/Factory | Learned location of Upper Caves (-4) 5937 | -7/Factory | Discovered exit to Factory (range 16) 5942 | -7/Factory | Learned location of Proximity Caves (-6) 6049 | -7/Factory | Garrison activated, responded to threat 6076 | -7/Factory | Reached level 16 6214 | -7/Factory | First assault squad dispatched 7337 | -7/Factory | Reached level 17 7349 | -7/Factory | Upgraded with Utility slot (x1) 7668 | -7/Factory | Upgraded with Power slot (x1) 7979 | -7/Factory | Sucked down chute 7979 | -7/Factory | Entered Waste 7983 | -7/Waste | Destroyed 7 combat bots 7994 | -7/Waste | EMP discharged 8000 | -7/Waste | Spotted C-40 Crusher 8000 | -7/Waste | Spotted C-40 Crusher 8002 | -7/Waste | Spotted C-40 Crusher 8006 | -7/Waste | Spotted C-40 Crusher 8007 | -7/Waste | Spotted C-40 Crusher 8010 | -7/Waste | Spotted C-40 Crusher 8030 | -7/Waste | Discovered new exit (range 17) 8035 | -7/Waste | Identified exit to Factory 8035 | -7/Waste | Entered Factory 8277 | -7/Factory | Fabricated System Restoration Module (x2) 8677 | -7/Factory | Discovered exit to Factory (range 5) 8725 | -7/Factory | Discovered exit to Lower Caves (range 8) 8771 | -7/Factory | Build established: Hacker-Gunner 8788 | -7/Factory | Reached level 18 8800 | -7/Factory | Learned location of 1 exit from Upper Caves 8824 | -7/Factory | Loaded intel: 4 scanalyzer locations 8835 | -7/Factory | First assault squad dispatched 8842 | -7/Factory | Learned Extension stockpile data 8846 | -7/Factory | Discovered exit to Factory (range 16) 8882 | -7/Factory | Learned location of 2 exits from Lower Caves 8933 | -7/Factory | Upgraded with Propulsion slot (x1) 8950 | -7/Factory | Fabricated Corruption Screen? 8964 | -7/Factory | Allied Derelicts emerged from ambush trap array 9150 | -7/Factory | Destroyed 8 combat bots 9206 | -7/Factory | Repaired Broken Lgt. Neutrino Core? 9308 | -7/Factory | Fabricated System Restoration Module (x2) 9557 | -7/Factory | Discovered exit to Factory (range 11) 9638 | -7/Factory | Destroyed 9 combat bots 9965 | -7/Factory | Garrison activated, responded to threat 10026 | -7/Factory | Entered Lower Caves 10027 | -7/Lower Caves | Identified exit to Lower Caves 10074 | -7/Lower Caves | Attracted the attention of an 0b10 outpost 10104 | -7/Lower Caves | Reached level 19 10137 | -7/Lower Caves | Destroyed 8 combat bots 10164 | -7/Lower Caves | Learned Factory stockpile data 10176 | -7/Lower Caves | Found Alien Artifact 10176 | -7/Lower Caves | Identified Core Expander 10176 | -7/Lower Caves | Installed Core Expander, added new Power slot 10329 | -7/Lower Caves | Learned Factory trap positions 10342 | -7/Lower Caves | Entered another Lower Caves area 10343 | -7/Lower Caves | Identified exit to Data Miner 10348 | -7/Lower Caves | Discovered exit to Factory (range 14) 10493 | -7/Lower Caves | Learned Factory interactive machine intel 10615 | -7/Lower Caves | Learned 8 Factory zone layouts 10711 | -7/Lower Caves | Destroyed 9 combat bots 10747 | -7/Lower Caves | Entered Data Miner 10747 | -7/Data Miner | Discovered new exit (range 6) 10754 | -7/Data Miner | Met Data Miner 10761 | -7/Data Miner | Learned location of Section 7 (-2) 10767 | -7/Data Miner | Received God Mode back door access code from Data Miner 10775 | -7/Data Miner | Identified exit to Proximity Caves 10775 | -7/Data Miner | Entered Proximity Caves 10794 | -6/Proximity Caves | Acquired the password to a Derelict Tinkerer's latest research 10800 | -6/Proximity Caves | Found Prototype Special Weapon 10800 | -6/Proximity Caves | Identified Molecular Deconstructor 10841 | -6/Proximity Caves | Attracted the attention of an 0b10 base 10841 | -6/Proximity Caves | Learned location of 1 exit from Factory 10842 | -6/Proximity Caves | Learned 8 Factory zone layouts 10842 | -6/Proximity Caves | Learned Factory trap positions 10842 | -6/Proximity Caves | Learned Factory garrison access intel 10908 | -6/Proximity Caves | Destroyed 13 combat bots 10935 | -6/Proximity Caves | Caught by Unaware searching for contraband prototypes 11020 | -6/Proximity Caves | Spotted B-75 Beast 11022 | -6/Proximity Caves | Reached level 20 11022 | -6/Proximity Caves | Destroyed B-75 Beast 11260 | -6/Proximity Caves | Attracted the attention of an 0b10 checkpoint 11344 | -6/Proximity Caves | Destroyed 7 combat bots 11529 | -6/Proximity Caves | Received a Behemoth hack from an annoying Tinkerer 11750 | -6/Proximity Caves | Entered Factory 11751 | -6/Factory | Identified exit to Lower Caves 11752 | -6/Factory | Identified exit to Factory 11753 | -6/Factory | Loaded intel: 91 trap records 11755 | -6/Factory | Loaded intel: 53 interactive machine locations 11756 | -6/Factory | Loaded intel: 4 garrison access locations 12006 | -6/Factory | Unchained authorized (DW-4LL) 12087 | -6/Factory | Fabricated Adv. Sensor Array (x2) 12199 | -6/Factory | Spotted B-75 Beast 12217 | -6/Factory | Reached level 21 12217 | -6/Factory | Destroyed B-75 Beast 12225 | -6/Factory | DW-4LL burst out of a wall 12244 | -6/Factory | Core integrity fell below 50% 12247 | -6/Factory | Build established: Hacker-Scout 12249 | -6/Factory | Core integrity fell below 20% 12281 | -6/Factory | Destroyed by G-50 Soldier with Heavy Laser Last Messages --------------- 12251_ K-01 Serf destroyed. 12251_ K-01 Serf collects debris. 12253_ R-10 Processor collects Wheel. 12254_ K-01 Serf collects debris. 12268_ K-01 Serf suffers critical hit (Burn). 12268_ Wheel melted. 12268_ K-01 Serf destroyed. 12275_ Triggered Proton Bomb Trap. 12275_ A bubble of electromagnetic force engulfs the area. 12275_ Corruption Screen intercepted 1% system corruption. 12276_ Triggered Proton Bomb Trap. 12276_ A bubble of electromagnetic force engulfs the area. 12276_ Proton Bomb Trap short circuited. 12276_ A bubble of electromagnetic force engulfs the area. 12276_ U-05 Engineer destroyed. 12276_ U-05 Engineer lays Concrete. 12276_ Destroyed Welding Torch. 12277_ U-05 Engineer call for reinforcements jammed. 12277_ U-05 Engineer distress signal jammed. 12279_ Critical hit (Burn: +37). Map ----- +----------------------------------------------------+ | ?????????????????????????????????????????????????? | | ?????????????????????????????????????????????????? | | ?????????????????????????????????????????????????? | | ?????????????????????????????????????????????????? | | # #??# # """ #????######?????????????? | | ###+####??# # #?????#####?????????????? | | # #???# # #?????# ?????????????? | | # ##### ############# ?????????????? | | + + ?????????????? | | # #####+###########/#####?????????????? | | # ## # #???????????????? | | ### ####! # """ "" #???????????????? | | #?# #??# # """ ""S #???????????????? | | ########## #### """ # """ "" #???????????????? | | kYk""" # #???????????????? | | ##### #### """ # """ """ #??????""???????? | | #???# #??# # """ """ #?????"""???????? | | #???# #??##+#### """ """ #?????"R????????? | | #???# #???# #??# #?????"""???????? | | ##+####### #???#u#??# #?????"""???????? | | # #???# #??# #???????????????? | | "" """" # #???# #??# #???????????????? | | "" """" # #???# #??#####p#+############?????????? | | "" """" # #???# #??????# ?????????? | | "" """" # #???# ######## ???????????? | | "" """" # #???# ^^ |@*""G"" ?????????????? | | "" """" # #???##########%! " " ?????????????? | | "" """" # #???# #! g A ????????????? | | # #???# # ???????????? | | ? ?????? #???# # g #???# | | ? ?????? #???# # u #???# | | ? ?????? #???# + """""" #???# """ | | ?###?????? #???# # """""" #???# """ | | ???????????#???# # """""" #???# """ | | ???????????##### # """""" ##### """ | | ??????????? # # + | | ??????????? ###+###### ## | | ??????????? #?# #????# ####### | | ??????????? #?# #????# #?????? | | ??????????? #?# #????# ##### #?????? | | ??????????? #?# #????# #???# ####### | | ??????????? #?# #????# #???# | | ??????????? #?# #????# ####+#####?# #### | | ??????????? #?# ###### ^ ^# #?# #??? | | ???????????+####?# ^^^^# """"#?# #??? | | ??????????? ###### + """"#?# #??? | | ??????????? # """"#?# #??? | | ??????????? # """"#?# #??? | | ??????????? # """"###+##+#### | | ??????????? # """"# # | +----------------------------------------------------+ Best States ------------- Heat Dissipation 145 Energy Generation 45 Energy Capacity 580 Matter Stores 300 Matter Capacity 300 Sight Range 19 Robot Scan Range 18 Terrain Scan Range 16 Terrain Scan Density 10 ECM Strength 2 Jamming Range 12 Base Temperature (-) 100 Corruption Block 8 Resistance: KI 10 Resistance: TH 10 Evasion (%) 70 Targeting Accuracy 8 Recoil Reduction 4 Offensive Hacking 15 Defensive Hacking 20 Authchip Count 1 Item Schematics ----------------- Titanium Leg | -8/Materials | Extracted Imp. Sensor Array | -8/Materials | Extracted System Restoration Module | -7/Factory | Scanalyzed Corruption Screen | -7/Factory | Scanalyzed Adv. Assault Cannon | -7/Factory | Extracted Datajack | -7/Factory | Extracted Cld. Pulse Rifle | -7/Factory | Extracted Imp. Signal Interpreter | -7/Factory | Extracted Coolant Injector | -7/Factory | Extracted Hpw. Shotgun | -7/Factory | Extracted Hammer | -7/Factory | Extracted Transmission Jammer | -7/Factory | Extracted Cooling System | -7/Factory | Extracted Xenon Bombardment Thruster | -7/Factory | Hacked Missile Launcher | -7/Factory | Extracted Combat Drone Bay | -7/Data Miner | Free Lgt. Regenerative Plating | -7/Data Miner | Free Cld. Aerolev Unit | -7/Data Miner | Free Exp. Targeting Computer | -7/Data Miner | Free Force Rifle | -7/Data Miner | Free Antigrav System | -7/Data Miner | Free Imp. Component Analysis Suite | -7/Data Miner | Free Hyp. Coil Gun | -7/Data Miner | Free Thermic Laser | -7/Data Miner | Free Variable Charge Gun | -7/Data Miner | Free Imp. Launcher Guidance Computer | -7/Data Miner | Free Imp. Gyrokinetic Inverter | -7/Data Miner | Free Adv. Targeting Computer | -6/Factory | Scanalyzed Exp. Heat Sink | -6/Factory | Scanalyzed Cld. Gravmag System | -6/Factory | Scanalyzed Imp. Hacking Suite | -6/Factory | Hacked Robot Schematics ------------------ K-01 Serf | -7/Factory | Hacked R-10 Processor | -7/Data Miner | Free L-41 Fighter | -7/Data Miner | Free S-27 Virus | -7/Data Miner | Free H-55 Commando | -7/Data Miner | Free B-48 Gladiator | -7/Data Miner | Free M-22 Extractor | -7/Data Miner | Free I-36 Angel | -7/Data Miner | Free Y-54 Guardian | -7/Data Miner | Free Fabricated ------------ Linear Gravjet | x2 | -7/Factory | Preloaded System Restoration Module | x2 | -7/Factory Corruption Screen | x2 | -7/Factory System Restoration Module | x2 | -7/Factory Adv. Sensor Array | x2 | -6/Factory | Preloaded Repaired ---------- Cld. Pulse Rifle | 72% | -7/Factory | Broken Lgt. Neutrino Core | 18% | -7/Factory | Broken Studied --------- Imp. Deuterium Engine | -7/Factory | Hacked Gatling Laser | -7/Factory | Hacked Thermic Laser | -6/Factory | Hacked Alien Tech Used ----------------- Core Expander Achievements -------------- DIY Cooler Deductive Reasoning Item+ Challenges ------------ None RPGLIKE | -11 -10 -10 -9 -9 -9 -8 -8 -8 -7 -7 -7 -7 -7 -7 -6 -6 --------- Run | Yrd Mat Min Mat Min Exi Min Mat Sto Fac Was Fac Low Low Dat Pro Fac Levels Raised 20 | . 1 1 4 1 . 1 3 2 3 . 1 1 . . 1 1 XP Earned 33010 | 3000 2075 1200 6280 1122 243 1800 4927 1978 4900 46 2208 292 348 73 1464 1054 XP Spent 28700 | 1500 1350 1100 3820 . 1350 1100 2500 . 13630 . 2000 . . . . 350 Upgrades 45 | 3 7 4 8 . 2 1 2 . 14 . 2 . . . . 2 Power Slot 2 | . . . . . . . . . 2 . . . . . . . Propulsion Slot 4 | 1 . . 1 . . 1 . . . . 1 . . . . . Utility Slot 8 | 1 . . 2 . . . 1 . 4 . . . . . . . Weapon Slot 3 | 1 . . 1 . . . 1 . . . . . . . . . Heat Dissipation 5 | . . . 4 . . . . . 1 . . . . . . . Mass Support 2 | . . 1 . . 1 . . . . . . . . . . . Inventory Capacity 4 | . 1 1 . . 1 . . . 1 . . . . . . . Sight Range 2 | . . 1 . . . . . . . . . . . . . 1 Sensor Range 1 | . . . . . . . . . . . . . . . . 1 Ranged Accuracy 3 | . . 1 . . . . . . 1 . 1 . . . . . Hack Attack % 2 | . 1 . . . . . . . 1 . . . . . . . Hack Defense % 2 | . 1 . . . . . . . 1 . . . . . . . KI Resistance % 2 | . 1 . . . . . . . 1 . . . . . . . TH Resistance % 2 | . 1 . . . . . . . 1 . . . . . . . KI Damage % 1 | . 1 . . . . . . . . . . . . . . . TH Damage % 2 | . 1 . . . . . . . 1 . . . . . . . Protomatter Created 5915 | . 158 17 500 156 . 63 621 675 1206 . 1011 131 287 . 682 408 Integrity Restored 7968 | . 309 . 1068 78 . 168 827 584 2090 . 1034 152 314 . 843 501 Core 6306 | . 309 . 963 63 . 119 646 364 1595 . 776 127 268 . 662 414 Parts 1662 | . . . 105 15 . 49 181 220 495 . 258 25 46 . 181 87 Protomatter Decayed 2597 | . 26 . 28 38 2 . 188 612 315 . 588 66 181 . 337 216 Game ------ Seed StormZioniteExpander Manual? 0 Play Time 03:30:20 Cumulative 326.0 hours Start 2025.11.18 @ 09:17:39 End 2025.11.22 @ 18:38:50 Sessions 9 Manual Loads 0 Difficulty Rogue Special Mode Winter2019/RPGLIKE Game No. 131 Rogue 83 Adventurer 44 Explorer 4 Win Type - Total 11 Types 4/3/0/1/1/1/0/1/0/0 Lore% 72 Gallery% 70 Achievement% 49 Wizard Run 0 Options --------- Layout 0 ASCII 0 Keyboard 0 Movement Arrows Keybinds 0 Fullscreen 2 Font 18/SmallcapsGlow Map View 76x50 Zoom Use 0% Tactical HUD 1 Map Filters NONE Filters NONE Steam 1 RUN: 53a64bde-1a6f-4556-923f-a536a50ab1a9